Cogmind - Beta 11.1 @@@ ROGUE MODE // 2022.07.15 @ 13:02:43 // Winter2019/RPGLIKE Player: Hermelin Result: Destroyed by as-77224 with Assembled Blade Performance ------------- Evolutions (0) 0 Regions Visited (0) 0 Robots Destroyed (2) 10 Value Destroyed (14) 14 Prototype IDs (0) 0 Alien Tech Used (0) 0 Bonus (0) 0 TOTAL SCORE: 24 Bonus ------- None Cogmind --------- Core Integrity 0/600 Matter 263/300 Energy 227/250 System Corruption 4% Temperature Hot (280) Movement Treading (160) Location -11/Scrapyard Parts ------- > --- POWER (1) -------- Ion Engine > --- PROPULSION (2) --- Light Treads Wheel > --- UTILITY (2) ------ Seismic Detector > --- WEAPON (2) ------- EM Pulse Gun Light Assault Rifle > --- INVENTORY (2) ---- Light Treads Peak State ------------ > --- POWER ------------ Ion Engine > --- PROPULSION ------- Light Treads Wheel > --- UTILITY ---------- Improved Terrain Scanner Seismic Detector > --- WEAPON ----------- EM Pulse Gun Light Assault Rifle > --- INVENTORY -------- Light Treads Medium Laser [Rating: 9] Favorites ----------- Power Ion Engine Engine Ion Engine Propulsion Wheel Treads Light Treads Wheel Wheel Utility Improved Terrain Scanner Device Improved Terrain Scanner Weapon Light Assault Rifle Energy Gun EM Pulse Gun Ballistic Gun Light Assault Rifle Special Weapon Mining Laser Build | -11 ------- Run | Scr Slots Evolved 3 | 3 Power . | . Propulsion 1 | 1 Utility 1 | 1 Weapon 1 | 1 Parts Attached 9 | 9 Power 1 | 1 Engine 1 | 1 Core . | . Reactor . | . Propulsion 2 | 2 Treads 1 | 1 Leg . | . Wheel 1 | 1 Hover . | . Flight . | . Utility 2 | 2 Device 2 | 2 Storage . | . Processor . | . Hackware . | . Protection . | . Artifact . | . Weapon 4 | 4 Energy Gun 2 | 2 Energy Cannon . | . Ballistic Gun 1 | 1 Ballistic Cannon . | . Launcher . | . Special Weapon 1 | 1 Impact Weapon . | . Slashing Weapon . | . Piercing Weapon . | . Special Melee Weapon . | . Unidentified Prototypes . | . Parts Lost 1 | 1 Power . | . Propulsion . | . Utility 1 | 1 Weapon . | . Highest Loss Streak 1 | 1 To Critical Strikes . | . Average Slot Usage (%) . | . Naked Turns . | . Heaviest Build 10 | 10 Greatest Support 20 | 20 Greatest Overweight (x) . | . Average Overweight (x) . | . Largest Inventory Capacity 2 | 2 Average Capacity 1 | 1 Most Carried 2 | 2 Average Carried 1 | 1 Final Capacity 2 | 2 Final Carried 1 | 1 Class Distribution -------------------- None Dominant Class ---------------- None Resources | -11 ----------- Run | Scr Matter Collected 262 | 262 Remotely . | . Salvage Created 36 | 36 Parts 4 | 4 Haulers Intercepted . | . Recyclers Shooed . | . Parts Field Recycled . | . Retrieved Matter . | . Parts Self-Destructed . | . Prevented . | . Kills | -11 ------- Run | Scr Combat Hostiles Destroyed 1 | 1 Guns 1 | 1 Classes Destroyed 2 | 2 Tunneler 2 | 2 Assembled 1 | 1 Best Kill Streak 1 | 1 Combat Bots Only 1 | 1 Max Kills in Single Turn 1 | 1 Gunslinging . | . Exploded . | . Melee . | . Uniques/NPCs Destroyed . | . Combat | -11 -------- Run | Scr Damage Taken 746 | 746 Core 614 | 614 Absorbed by Shields . | . Redirected to Core 450 | 450 Core Remaining (%) . | . Volleys Fired 15 | 15 Largest 2 | 2 Hottest 100 | 100 Shots Fired 20 | 20 Gun 19 | 19 Cannon . | . Launcher . | . Special 1 | 1 Kinetic 14 | 14 Thermal 1 | 1 Explosive . | . Electromagnetic 5 | 5 Robot Hit Streak 8 | 8 Robot Miss Streak 2 | 2 Penetration Max . | . Secondary Targets . | . Shots Hit Robots 14 | 14 Core Hits 7 | 7 Critical Kills . | . Critical Parts Destroyed . | . Critical Strikes . | . Melee Attacks . | . Impact . | . Slashing . | . Piercing . | . Sneak Attacks . | . Combat Hostiles . | . Follow-up Attacks . | . Damage Inflicted 111 | 111 Guns 111 | 111 Cannons . | . Explosions . | . Melee . | . Ramming . | . Kinetic 77 | 77 Thermal . | . Explosive . | . Electromagnetic 34 | 34 Impact . | . Slashing . | . Piercing . | . Highest Corruption 4 | 4 Average Corruption 4 | 4 Corruption Purged . | . Corruption Blocked . | . Overload Shots . | . Overflow Damage . | . Projectiles . | . Explosions . | . Melee . | . Knockbacks . | . Impact . | . Kinetic . | . Secondary . | . Self-Inflicted Damage . | . Shots . | . Rammed . | . Targets Rammed . | . Kicked . | . Crushed . | . Highest Temperature 240 | 240 Average Temperature 83 | 83 Received Heat Transfer 280 | 280 Siege Activations . | . Robots Corrupted . | . Combat Hostiles . | . Parts Fried . | . Impact Corruptions . | . Robots Melted . | . Combat Hostiles . | . Parts Melted . | . Heat Transferred . | . Parts Sabotaged . | . Parts Stolen . | . Parts Stripped . | . Power Chain Reactions . | . Missiles Intercepted . | . Alert | -11 ------- Run | Scr Peak Influence 5 | 5 Initial . | . Average . | . Maximum Alert Level . | . Low Security (%) 100 | 100 Level 1 . | . Level 2 . | . Level 3 . | . Level 4 . | . Level 5 . | . High Security . | . Max Security . | . Squads Dispatched . | . Investigation . | . Extermination . | . Reinforcement . | . Assault . | . Garrison . | . Intercept . | . Searches Triggered . | . Construction Impeded . | . Haulers Reinforced . | . Active Scanning Responses . | . Cargo Convoy Interrupts . | . Stealth | -11 --------- Run | Scr Distress Signals . | . Communications Jammed . | . Distress Signals . | . Times Spotted 20 | 20 Peak Tracking Total 20 | 20 Tactical Retreats . | . Traps | -11 ------- Run | Scr Traps Triggered . | . Indirectly . | . Trap Hack Attempts . | . Triggered . | . Disarmed . | . Reprogrammed . | . Reused . | . Traps Extracted . | . Installed . | . Triggered . | . Machines | -11 ---------- Run | Scr Machines Disabled . | . Max in Single Turn . | . Machines Sabotaged . | . Garrisons Compromised . | . Overloaded Fab Kills . | . Hacking | -11 --------- Run | Scr Machines Accessed . | . Terminals . | . Fabricators . | . Repair Stations . | . Recycling Units . | . Scanalyzers . | . Garrison Access . | . Total Hacks . | . Successful . | . Failed . | . Catastrophic . | . Database Lockouts . | . Manual . | . Terminals . | . Fabricators . | . Repair Stations . | . Recycling Units . | . Scanalyzers . | . Garrison Access . | . Terminal Hacks . | . Fabricator Hacks . | . Repair Station Hacks . | . Recycling Unit Hacks . | . Scanalyzer . | . Garrison Access Hacks . | . Unauthorized Hacks . | . Terminals . | . Fabricators . | . Repair Stations . | . Recycling Units . | . Scanalyzers . | . Garrison Access . | . Data Cores Recovered . | . Used . | . Hacking Detections . | . Full Trace Events . | . Feedback Events . | . Feedback Blocked . | . Robot Schematics Acquired . | . Robots Built . | . Authchips . | . Time . | . Total Robot Build Rating . | . Part Schematics Acquired . | . Parts Built . | . Authchips . | . Time . | . Total Part Build Rating . | . Parts Repaired . | . Time . | . Parts Recycled . | . Recycled Matter . | . Retrieved Matter . | . Retrieved Components . | . Parts Scanalyzed . | . Part Schematics Acquired . | . Parts Damaged . | . Bothacking | -11 ------------ Run | Scr Used RIF Installer . | . Robots Hacked . | . Non-combat . | . Combat . | . Robot Hacks Applied . | . Relay Couplers Released . | . Fabnet Peak Effective % . | . Robots Rewired . | . Allies Hacked . | . Hacks Repelled . | . Allies | -11 -------- Run | Scr Total Allies . | . Largest Group . | . Highest-Rated Group . | . Highest-Rated Ally . | . Total Orders . | . Ally Attacks . | . Total Damage . | . Kills . | . Allies Corrupted . | . Allies Melted . | . Intel | -11 ------- Run | Scr Robot Analysis Total . | . Derelict Logs Recovered . | . Drone Launches . | . Drone Recoveries . | . Exploration | -11 ------------- Run | Scr Turns Passed 5391 | 5391 Spaces Moved 185 | 185 Core 3 | 3 Treads 9 | 9 Legs . | . Wheels 173 | 173 Hover . | . Flight . | . Fastest Speed 50 | 50 Average Speed 83 | 83 Slowest Speed 160 | 160 Overloaded Moves . | . Propulsion Burnouts . | . Robots Hopped . | . Cave-ins Triggered . | . Exploration Rate (%) 32 | 32 Regions Visited . Branch Regions . Pre-discovered Areas . | . Known Exits Taken . | . Unknown Exits Taken . | . Scrap Searched . | . Spaces Dug 1 | 1 Terrain Destroyed 1 | 1 Melee . | . Projectile 1 | 1 AOE . | . Terrain Rammed . | . Walls Destroyed . | . Machines Disabled . | . Actions | -11 --------- Run | Scr Total 5402 | 5402 Wait 5188 | 5188 Move 185 | 185 Hop . | . Pick Up 3 | 3 Fast Attach 7 | 7 Attach 1 | 1 Detach . | . Swap 1 | 1 Drop 2 | 2 Fire 15 | 15 Melee . | . Ram . | . Kick . | . Crush . | . Escape Stasis . | . Rewire . | . Trap . | . Miscellaneous . | . Route ------- -11/Scrapyard (discovered 1 exit: [*Mat]) History --------- Turn | Location | Event 6 | -11/Scrapyard | Upgraded with Propulsion slot (x1) 6 | -11/Scrapyard | Upgraded with Utility slot (x1) 6 | -11/Scrapyard | Upgraded with Weapon slot (x1) 6 | -11/Scrapyard | Discovered new exit (range 17) 5383 | -11/Scrapyard | Assembled infested the area 5389 | -11/Scrapyard | Core integrity fell below 50% 5391 | -11/Scrapyard | Core integrity fell below 20% 5392 | -11/Scrapyard | Destroyed by as-77224 with Assembled Blade Last Messages --------------- 00144_ K-01 Serf collects debris. 00147_ T-07 Excavator is excavating. 00151_ K-01 Serf collects debris. 00218_ T-07 Excavator is excavating. 00219_ K-01 Serf collects debris. 00222_ T-07 Excavator is excavating. 00255_ K-01 Serf collects debris. 00306_ T-07 Excavator is excavating. 01273_ K-01 Serf collects debris. 01370_ T-07 Excavator is excavating. 05241_ T-07 Excavator destroyed. 05249_ Acquired 10 matter. 05250_ Dropped Med. Laser. 05251_ Acquired Mining Laser. 05348_ Dropped Mining Laser. 05383_ ALERT: Infestation in the scrapyard, dispatching Demolisher response squad. 05389_ as-61893 destroyed. 05391_ Imp. Terrain Scanner destroyed. 05391_ System corrupted by crushing effect (+4). Map ----- +----------------------------------------------------+ | | | | | | | | | | | | | | | | | | | | | | | | | | | | | | | | | ????????????###??#######???#?#?#######?#?????????? | | ?????????????####?##?##?####?## ############? | | ?????????????### ? ##?###?### ## #? | | ??????????? ?### ? ?##?####### ## #? | | ?????????? ??##??? ########## ## ## | | ??????????#?#??# ? ########## ## | | ?????????? ? # ## a"## ## ## #? | | ??????????? ? # aa " # ## ?? | | ??????????##?# # ? # "aaaa # ## ??? | | ?????????? ? # # "@a ## ? ? ?? | | ??????????? # ## aa" aa# ## ### ###### | | ??????????? # ## "aaa ### ##### | | ??????????? # ## aa #### ###### | | ???????????##############aa##### ######## #??#?# | | ?????????? ############### #### # #???## | | ?????????? ############### # # #??? | | ?????????? ############### # # # | | ?????????? ############### # # #? | | ????????? #### ### ##### # # #? | | ????????? # # # | | ????????? # # # | | ?????????? ## ##### # # | | ?????????? ## ##### # # # | | ??????????######### ##### # # # | | ??????????##### # # # ###### | | ???????????#### # # # # | | ???????????#### [ # # # | | ????????????### # ######## # | | ????????????### ## # | | ?????????????## ## # # # | | ?????????#????# ## # # # | | ??????????????# ## # # ###### | | ?????????? ???####### #### # # ###### | | ?????????????????? # # # | +----------------------------------------------------+ Best States ------------- Heat Dissipation 25 Energy Generation 10 Energy Capacity 250 Matter Stores 282 Matter Capacity 300 Sight Range 17 Terrain Scan Range 16 Terrain Scan Density 110 Evasion (%) 44 Recoil Reduction 1 Offensive Hacking 5 Defensive Hacking 5 Item Schematics ----------------- None Robot Schematics ------------------ None Fabricated ------------ Nothing Alien Tech Used ----------------- None Achievements -------------- None Challenges ------------ None RPGLIKE | -11 --------- Run | Scr Levels Raised . | . XP Earned 3000 | 3000 XP Spent 2800 | 2800 Upgrades 9 | 9 Propulsion Slot 1 | 1 Utility Slot 1 | 1 Weapon Slot 1 | 1 Inventory Capacity 2 | 2 Sight Range 1 | 1 Terrain Scan Density 1 | 1 Hack Attack % 1 | 1 Hack Defense % 1 | 1 Protomatter Created 18 | 18 Protomatter Decayed . | . Game ------ Seed GhostCoreRifle Manual? 0 Play Time 00:13:10 Cumulative 448.4 hours Start 2022.07.15 @ 12:55:40 End 2022.07.15 @ 13:02:43 Sessions 0 Manual Loads 0 Difficulty Rogue Special Mode Winter2019/RPGLIKE Game No. 176 Rogue 173 Adventurer 3 Explorer 0 Win Type - Total 8 Types 5/1/0/1/0/1/0/0/0 Lore% 84 Gallery% 87 Achievement% 78 Wizard Run 0 Options --------- ASCII 0 Keyboard 0 Movement Numpad Keybinds 0 Fullscreen 1 Font 18/SmallcapsGlow Map View 76x50 Tactical HUD 1 Map Filters NONE Filters NONE Steam 1 RUN: 4c9ae8e0-374f-4d08-a3e9-1722fd186cba